[Event "Titled Tuesday Blitz December 13 Late 2022"]
[White "Goltsev, Dmitry"]
[Black "Martinez Ramirez, Lennis"]
[WhiteFideId "24176710"]
[BlackFideId "3509079"]
[WhiteElo "2327"]
[BlackElo "2439"]
[Result "1-0"]
[Round "07"]
[TimeControl "180+1"]
[Date "2022.12.13"]
[WhiteClock "0:01:11"]
[BlackClock "0:00:02"]

1. e4 {[%clk 0:02:58]}  c5 {[%clk 0:02:57]} 2. Nf3 {[%clk 0:02:58]}  Nc6 {[%clk 0:02:57]} 3. d4 {[%clk 0:02:58]}  cxd4 {[%clk 0:02:58]} 4. Nxd4 {[%clk 0:02:59]}  Nf6 {[%clk 0:02:59]} 5. Nc3 {[%clk 0:02:59]}  e5 {[%clk 0:02:58]} 6. Nf5 {[%clk 0:03:00]}  d5 {[%clk 0:02:54]} 7. exd5 {[%clk 0:03:01]}  Bxf5 {[%clk 0:02:53]} 8. dxc6 {[%clk 0:03:02]}  Qxd1+ {[%clk 0:02:47]} 9. Nxd1 {[%clk 0:03:03]}  bxc6 {[%clk 0:02:47]} 10. Ne3 {[%clk 0:03:03]}  Bg6 {[%clk 0:02:43]} 11. Bc4 {[%clk 0:02:59]}  Bc5 {[%clk 0:02:42]} 12. Ke2 {[%clk 0:02:55]}  O-O-O {[%clk 0:02:40]} 13. Bd2 {[%clk 0:02:43]}  Nd5 {[%clk 0:02:39]} 14. Bb3 {[%clk 0:02:35]}  Nf4+ {[%clk 0:02:37]} 15. Ke1 {[%clk 0:02:33]}  Bxe3 {[%clk 0:02:35]} 16. Bxe3 {[%clk 0:02:33]}  Nxg2+ {[%clk 0:02:35]} 17. Ke2 {[%clk 0:02:33]}  Nxe3 {[%clk 0:02:35]} 18. fxe3 {[%clk 0:02:34]}  Bh5+ {[%clk 0:02:34]} 19. Ke1 {[%clk 0:02:34]}  Rd6 {[%clk 0:02:33]} 20. Rg1 {[%clk 0:02:34]}  Rhd8 {[%clk 0:01:56]} 21. Rxg7 {[%clk 0:02:30]}  Rd2 {[%clk 0:01:47]} 22. Bxf7 {[%clk 0:02:21]}  Bxf7 {[%clk 0:01:17]} 23. Rxf7 {[%clk 0:02:20]}  Rxh2 {[%clk 0:01:18]} 24. a4 {[%clk 0:02:08]}  Rdd2 {[%clk 0:01:08]} 25. Rxh7 {[%clk 0:02:04]}  Rxc2 {[%clk 0:00:57]} 26. Rxh2 {[%clk 0:02:03]}  Rxh2 {[%clk 0:00:57]} 27. Rc1 {[%clk 0:01:58]}  Kc7 {[%clk 0:00:55]} 28. b4 {[%clk 0:01:58]}  Kd6 {[%clk 0:00:52]} 29. Rc4 {[%clk 0:01:54]}  Rb2 {[%clk 0:00:48]} 30. e4 {[%clk 0:01:53]}  Kc7 {[%clk 0:00:28]} 31. b5 {[%clk 0:01:51]}  Kb7 {[%clk 0:00:17]} 32. bxc6+ {[%clk 0:01:42]}  Kc7 {[%clk 0:00:17]} 33. Kd1 {[%clk 0:01:37]}  Rh2 {[%clk 0:00:12]} 34. a5 {[%clk 0:01:31]}  Ra2 {[%clk 0:00:12]} 35. Rc5 {[%clk 0:01:31]}  Ra4 {[%clk 0:00:08]} 36. Rxe5 {[%clk 0:01:29]}  Kxc6 {[%clk 0:00:08]} 37. Kd2 {[%clk 0:01:30]}  Kd6 {[%clk 0:00:08]} 38. Rd5+ {[%clk 0:01:30]}  Kc6 {[%clk 0:00:08]} 39. Ke3 {[%clk 0:01:29]}  Ra1 {[%clk 0:00:04]} 40. Kf4 {[%clk 0:01:29]}  Rf1+ {[%clk 0:00:04]} 41. Ke5 {[%clk 0:01:29]}  Re1 {[%clk 0:00:04]} 42. Rd6+ {[%clk 0:01:21]}  Kb5 {[%clk 0:00:05]} 43. a6 {[%clk 0:01:22]}  Kc5 {[%clk 0:00:04]} 44. Rd7 {[%clk 0:01:19]}  Kb6 {[%clk 0:00:05]} 45. Rd6+ {[%clk 0:01:19]}  Kc5 {[%clk 0:00:05]} 46. Rh6 {[%clk 0:01:19]}  Ra1 {[%clk 0:00:04]} 47. Kf5 {[%clk 0:01:17]}  Rf1+ {[%clk 0:00:03]} 48. Ke6 {[%clk 0:01:17]}  Ra1 {[%clk 0:00:04]} 49. Kd7 {[%clk 0:01:11]}  Rd1+ {[%clk 0:00:03]} 50. Kc7 {[%clk 0:01:11]}  Kd4 {[%clk 0:00:02]} 51. Rd6+ {[%clk 0:01:11]} 1-0


[Site "https://www.chess.com"]

[Event "Titled Tuesday Blitz December 13 Late 2022"]
[White "Gutkin, Ilya"]
[Black "Bjelobrk, Igor"]
[WhiteFideId "16203470"]
[BlackFideId "4300726"]
[WhiteElo "2265"]
[BlackElo "2335"]
[Result "1/2-1/2"]
[Round "07"]
[TimeControl "180+1"]
[Date "2022.12.14"]
[WhiteClock "0:00:07"]
[BlackClock "0:00:08"]

1. Nf3 {[%clk 0:03:00]}  c5 {[%clk 0:02:52]} 2. b3 {[%clk 0:03:00]}  Nc6 {[%clk 0:02:50]} 3. Bb2 {[%clk 0:02:59]}  d6 {[%clk 0:02:49]} 4. d4 {[%clk 0:03:00]}  cxd4 {[%clk 0:02:49]} 5. Nxd4 {[%clk 0:03:00]}  Nf6 {[%clk 0:02:48]} 6. c4 {[%clk 0:02:58]}  g6 {[%clk 0:02:39]} 7. g3 {[%clk 0:02:56]}  Bg7 {[%clk 0:02:39]} 8. Bg2 {[%clk 0:02:55]}  Bd7 {[%clk 0:02:38]} 9. O-O {[%clk 0:02:54]}  O-O {[%clk 0:02:36]} 10. Nc3 {[%clk 0:02:52]}  Qa5 {[%clk 0:02:25]} 11. Nd5 {[%clk 0:02:19]}  Nxd5 {[%clk 0:02:22]} 12. Bxd5 {[%clk 0:02:14]}  Qb6 {[%clk 0:01:40]} 13. Nxc6 {[%clk 0:01:33]}  bxc6 {[%clk 0:01:38]} 14. Bxg7 {[%clk 0:01:31]}  Kxg7 {[%clk 0:01:38]} 15. Bg2 {[%clk 0:01:26]}  a5 {[%clk 0:01:35]} 16. Qd2 {[%clk 0:01:23]}  Rfb8 {[%clk 0:01:29]} 17. Rab1 {[%clk 0:01:19]}  Qb4 {[%clk 0:01:22]} 18. Qb2+ {[%clk 0:01:13]}  Kg8 {[%clk 0:01:21]} 19. a3 {[%clk 0:01:05]}  Qc5 {[%clk 0:01:18]} 20. Rfc1 {[%clk 0:01:03]}  Bf5 {[%clk 0:01:08]} 21. e4 {[%clk 0:01:02]}  Be6 {[%clk 0:01:04]} 22. b4 {[%clk 0:00:49]}  axb4 {[%clk 0:01:00]} 23. axb4 {[%clk 0:00:50]}  Qb6 {[%clk 0:00:59]} 24. Qc3 {[%clk 0:00:22]}  Ra4 {[%clk 0:00:55]} 25. c5 {[%clk 0:00:12]}  dxc5 {[%clk 0:00:47]} 26. Qxc5 {[%clk 0:00:12]}  Qxc5 {[%clk 0:00:35]} 27. Rxc5 {[%clk 0:00:13]}  Raxb4 {[%clk 0:00:24]} 28. Rbc1 {[%clk 0:00:14]}  R8b6 {[%clk 0:00:20]} 29. e5 {[%clk 0:00:13]}  Rb1 {[%clk 0:00:19]} 30. Bxc6 {[%clk 0:00:11]}  Rxc1+ {[%clk 0:00:18]} 31. Rxc1 {[%clk 0:00:12]}  Bh3 {[%clk 0:00:18]} 32. Bg2 {[%clk 0:00:11]}  Bxg2 {[%clk 0:00:17]} 33. Kxg2 {[%clk 0:00:12]}  Rb2 {[%clk 0:00:17]} 34. Rc7 {[%clk 0:00:10]}  e6 {[%clk 0:00:16]} 35. Rc3 {[%clk 0:00:09]}  g5 {[%clk 0:00:16]} 36. g4 {[%clk 0:00:07]}  Kg7 {[%clk 0:00:15]} 37. Re3 {[%clk 0:00:06]}  Kg6 {[%clk 0:00:14]} 38. Kg3 {[%clk 0:00:06]}  Rb4 {[%clk 0:00:13]} 39. h4 {[%clk 0:00:03]}  gxh4+ {[%clk 0:00:12]} 40. Kxh4 {[%clk 0:00:04]}  h5 {[%clk 0:00:12]} 41. f3 {[%clk 0:00:04]}  Rc4 {[%clk 0:00:09]} 42. Re4 {[%clk 0:00:04]}  Rxe4 {[%clk 0:00:09]} 43. fxe4 {[%clk 0:00:04]}  hxg4 {[%clk 0:00:06]} 44. Kxg4 {[%clk 0:00:05]}  Kh6 {[%clk 0:00:07]} 45. Kh4 {[%clk 0:00:06]}  Kg6 {[%clk 0:00:07]} 46. Kg4 {[%clk 0:00:06]}  Kh6 {[%clk 0:00:07]} 47. Kh4 {[%clk 0:00:07]}  Kg6 {[%clk 0:00:08]} 48. Kg4 {[%clk 0:00:07]} 1/2-1/2


[Site "https://www.chess.com"]

[Event "Titled Tuesday Blitz December 13 Late 2022"]
[White "Han, Yichen"]
[Black "Ibarra Jerez, Jose Carlos"]
[WhiteFideId "1054430"]
[BlackFideId "2226332"]
[WhiteElo "2323"]
[BlackElo "2638"]
[Result "0-1"]
[Round "07"]
[TimeControl "180+1"]
[Date "2022.12.13"]
[WhiteClock "0:00:02"]
[BlackClock "0:00:49"]

1. d4 {[%clk 0:03:00]}  Nf6 {[%clk 0:02:59]} 2. Nf3 {[%clk 0:03:00]}  g6 {[%clk 0:02:59]} 3. Nbd2 {[%clk 0:02:59]}  d5 {[%clk 0:02:55]} 4. e3 {[%clk 0:02:59]}  Bg7 {[%clk 0:02:56]} 5. b4 {[%clk 0:03:00]}  O-O {[%clk 0:02:56]} 6. Be2 {[%clk 0:02:59]}  a5 {[%clk 0:02:55]} 7. b5 {[%clk 0:02:59]}  c5 {[%clk 0:02:55]} 8. bxc6 {[%clk 0:02:56]}  bxc6 {[%clk 0:02:54]} 9. O-O {[%clk 0:02:55]}  Bf5 {[%clk 0:02:53]} 10. c4 {[%clk 0:02:55]}  c5 {[%clk 0:02:48]} 11. Ba3 {[%clk 0:02:50]}  Na6 {[%clk 0:02:41]} 12. Rc1 {[%clk 0:02:38]}  Nb4 {[%clk 0:02:40]} 13. Bxb4 {[%clk 0:02:15]}  cxb4 {[%clk 0:02:38]} 14. cxd5 {[%clk 0:02:15]}  Nxd5 {[%clk 0:02:34]} 15. Bc4 {[%clk 0:02:08]}  Nc3 {[%clk 0:02:32]} 16. Qb3 {[%clk 0:02:06]}  Qd6 {[%clk 0:02:26]} 17. a3 {[%clk 0:01:57]}  Rab8 {[%clk 0:02:05]} 18. axb4 {[%clk 0:01:54]}  axb4 {[%clk 0:02:06]} 19. Rfe1 {[%clk 0:01:35]}  Bd7 {[%clk 0:02:05]} 20. Ra1 {[%clk 0:01:23]}  e6 {[%clk 0:02:01]} 21. Ra6 {[%clk 0:01:15]}  Rb6 {[%clk 0:01:59]} 22. Rea1 {[%clk 0:01:14]}  Rfb8 {[%clk 0:01:57]} 23. h3 {[%clk 0:01:09]}  h6 {[%clk 0:01:57]} 24. Ra7 {[%clk 0:00:58]}  Be8 {[%clk 0:01:55]} 25. Bf1 {[%clk 0:00:54]}  Qd5 {[%clk 0:01:50]} 26. Bc4 {[%clk 0:00:52]}  Qf5 {[%clk 0:01:49]} 27. Ra8 {[%clk 0:00:45]}  Bc6 {[%clk 0:01:45]} 28. Rxb8+ {[%clk 0:00:44]}  Rxb8 {[%clk 0:01:45]} 29. Ra6 {[%clk 0:00:39]}  Bd7 {[%clk 0:01:34]} 30. Ra7 {[%clk 0:00:39]}  Be8 {[%clk 0:01:33]} 31. Re7 {[%clk 0:00:29]}  Ba4 {[%clk 0:01:25]} 32. Qb2 {[%clk 0:00:26]}  Qa5 {[%clk 0:01:14]} 33. Bb3 {[%clk 0:00:20]}  Bf8 {[%clk 0:01:09]} 34. Nc4 {[%clk 0:00:12]}  Qa6 {[%clk 0:01:04]} 35. Rc7 {[%clk 0:00:12]}  Nd5 {[%clk 0:00:59]} 36. Rc5 {[%clk 0:00:07]}  Bxc5 {[%clk 0:00:55]} 37. dxc5 {[%clk 0:00:08]}  Bxb3 {[%clk 0:00:55]} 38. Qxb3 {[%clk 0:00:09]}  Qa1+ {[%clk 0:00:53]} 39. Kh2 {[%clk 0:00:09]}  Qc3 {[%clk 0:00:54]} 40. Nfd2 {[%clk 0:00:06]}  Rc8 {[%clk 0:00:52]} 41. Qxc3 {[%clk 0:00:02]}  bxc3 {[%clk 0:00:52]} 42. Nb3 {[%clk 0:00:03]}  c2 {[%clk 0:00:51]} 43. Ncd2 {[%clk 0:00:01]}  Rxc5 {[%clk 0:00:49]} 44. Kg3 {[%clk 0:00:02]}  c1=Q {[%clk 0:00:49]} 0-1


[Site "https://www.chess.com"]

[Event "Titled Tuesday Blitz December 13 Late 2022"]
[White "Hoffmann, Asa"]
[Black "Hajiyev, Kanan"]
[WhiteFideId "2001470"]
[BlackFideId "13404148"]
[WhiteElo "2117"]
[BlackElo "2118"]
[Result "0-1"]
[Round "07"]
[TimeControl "180+1"]
[Date "2022.12.14"]
[WhiteClock "0:01:07"]
[BlackClock "0:00:49"]

1. d4 {[%clk 0:02:59]}  d5 {[%clk 0:02:58]} 2. Bg5 {[%clk 0:02:55]}  c6 {[%clk 0:02:59]} 3. e3 {[%clk 0:02:55]}  Qb6 {[%clk 0:02:59]} 4. b3 {[%clk 0:02:54]}  Bf5 {[%clk 0:02:59]} 5. Bd3 {[%clk 0:02:54]}  Bxd3 {[%clk 0:02:59]} 6. Qxd3 {[%clk 0:02:53]}  e6 {[%clk 0:03:00]} 7. Nd2 {[%clk 0:02:52]}  h6 {[%clk 0:03:01]} 8. Bh4 {[%clk 0:02:51]}  Ne7 {[%clk 0:03:01]} 9. f4 {[%clk 0:02:48]}  Nf5 {[%clk 0:03:00]} 10. Bf2 {[%clk 0:02:48]}  c5 {[%clk 0:02:59]} 11. c3 {[%clk 0:02:44]}  Nc6 {[%clk 0:02:59]} 12. g4 {[%clk 0:02:42]}  Nd6 {[%clk 0:02:57]} 13. dxc5 {[%clk 0:02:32]}  Qxc5 {[%clk 0:02:58]} 14. e4 {[%clk 0:02:31]}  Qb5 {[%clk 0:02:59]} 15. Qxb5 {[%clk 0:02:26]}  Nxb5 {[%clk 0:02:58]} 16. exd5 {[%clk 0:02:25]}  exd5 {[%clk 0:02:59]} 17. c4 {[%clk 0:02:19]}  dxc4 {[%clk 0:02:59]} 18. Nxc4 {[%clk 0:02:18]}  Bb4+ {[%clk 0:03:00]} 19. Kf1 {[%clk 0:02:18]}  O-O-O {[%clk 0:02:58]} 20. Nf3 {[%clk 0:02:15]}  Rhe8 {[%clk 0:02:51]} 21. Kg2 {[%clk 0:02:11]}  Re4 {[%clk 0:02:49]} 22. Bg3 {[%clk 0:02:04]}  Nbd4 {[%clk 0:02:35]} 23. Rhd1 {[%clk 0:01:49]}  Re2+ {[%clk 0:02:08]} 24. Bf2 {[%clk 0:01:48]}  Bc5 {[%clk 0:02:01]} 25. Rf1 {[%clk 0:01:40]}  Nc2 {[%clk 0:01:38]} 26. Rac1 {[%clk 0:01:38]}  b5 {[%clk 0:01:26]} 27. Nce5 {[%clk 0:01:30]}  Nxe5 {[%clk 0:01:18]} 28. Nxe5 {[%clk 0:01:28]}  Rdd2 {[%clk 0:01:13]} 29. b4 {[%clk 0:01:14]}  Bxf2 {[%clk 0:00:58]} 30. Kh3 {[%clk 0:01:09]}  f6 {[%clk 0:00:50]} 31. Nf3 {[%clk 0:01:07]}  Rd3 {[%clk 0:00:49]} 0-1


[Site "https://www.chess.com"]

[Event "Titled Tuesday Blitz December 13 Late 2022"]
[White "Holt, Conrad"]
[Black "Timmermans, Mark"]
[WhiteFideId "2034387"]
[BlackFideId "1026399"]
[WhiteElo "2592"]
[BlackElo "2460"]
[Result "0-1"]
[Round "07"]
[TimeControl "180+1"]
[Date "2022.12.13"]
[WhiteClock "0:00:01"]
[BlackClock "0:00:24"]

1. d4 {[%clk 0:03:00]}  Nf6 {[%clk 0:02:58]} 2. c4 {[%clk 0:03:00]}  e6 {[%clk 0:02:59]} 3. Nc3 {[%clk 0:03:00]}  Bb4 {[%clk 0:02:58]} 4. Qc2 {[%clk 0:03:01]}  O-O {[%clk 0:02:58]} 5. e4 {[%clk 0:03:01]}  d5 {[%clk 0:02:58]} 6. e5 {[%clk 0:03:02]}  Ne4 {[%clk 0:02:57]} 7. Bd3 {[%clk 0:03:02]}  c5 {[%clk 0:02:57]} 8. Nf3 {[%clk 0:03:02]}  cxd4 {[%clk 0:02:33]} 9. Nxd4 {[%clk 0:03:02]}  Nc5 {[%clk 0:02:22]} 10. Bxh7+ {[%clk 0:02:52]}  Kh8 {[%clk 0:02:23]} 11. Nf3 {[%clk 0:02:40]}  dxc4 {[%clk 0:02:09]} 12. O-O {[%clk 0:02:34]}  Nd3 {[%clk 0:02:07]} 13. Be4 {[%clk 0:02:27]}  Be7 {[%clk 0:01:46]} 14. Rd1 {[%clk 0:02:24]}  Nc6 {[%clk 0:01:46]} 15. Qe2 {[%clk 0:02:20]}  Kg8 {[%clk 0:01:16]} 16. Bxd3 {[%clk 0:02:16]}  cxd3 {[%clk 0:01:15]} 17. Rxd3 {[%clk 0:02:16]}  Qa5 {[%clk 0:01:13]} 18. Bf4 {[%clk 0:02:02]}  Qa6 {[%clk 0:01:08]} 19. Rad1 {[%clk 0:01:55]}  Nb4 {[%clk 0:01:04]} 20. R3d2 {[%clk 0:01:55]}  Qxe2 {[%clk 0:00:59]} 21. Rxe2 {[%clk 0:01:55]}  b6 {[%clk 0:00:59]} 22. a3 {[%clk 0:01:54]}  Nc6 {[%clk 0:00:55]} 23. Bg5 {[%clk 0:01:54]}  Ba6 {[%clk 0:00:52]} 24. Ree1 {[%clk 0:01:53]}  Rfd8 {[%clk 0:00:50]} 25. Bxe7 {[%clk 0:01:52]}  Nxe7 {[%clk 0:00:50]} 26. Nd4 {[%clk 0:01:48]}  Rd7 {[%clk 0:00:46]} 27. f4 {[%clk 0:01:47]}  Rad8 {[%clk 0:00:47]} 28. Nb3 {[%clk 0:01:41]}  Bc4 {[%clk 0:00:46]} 29. Nc1 {[%clk 0:01:33]}  Rd2 {[%clk 0:00:46]} 30. b3 {[%clk 0:01:31]}  Ba6 {[%clk 0:00:46]} 31. Rxd2 {[%clk 0:01:16]}  Rxd2 {[%clk 0:00:47]} 32. a4 {[%clk 0:01:08]}  Nf5 {[%clk 0:00:46]} 33. Ne4 {[%clk 0:00:57]}  Rc2 {[%clk 0:00:43]} 34. g3 {[%clk 0:00:52]}  Nd4 {[%clk 0:00:42]} 35. Ng5 {[%clk 0:00:34]}  Rxc1 {[%clk 0:00:42]} 36. Rxc1 {[%clk 0:00:33]}  Ne2+ {[%clk 0:00:43]} 37. Kf2 {[%clk 0:00:34]}  Nxc1 {[%clk 0:00:44]} 38. b4 {[%clk 0:00:34]}  Nd3+ {[%clk 0:00:44]} 39. Ke3 {[%clk 0:00:34]}  Nxb4 {[%clk 0:00:45]} 40. Kd4 {[%clk 0:00:34]}  Nc6+ {[%clk 0:00:44]} 41. Kc3 {[%clk 0:00:33]}  b5 {[%clk 0:00:43]} 42. axb5 {[%clk 0:00:31]}  Bxb5 {[%clk 0:00:44]} 43. Ne4 {[%clk 0:00:31]}  a5 {[%clk 0:00:41]} 44. Kb3 {[%clk 0:00:26]}  Kf8 {[%clk 0:00:41]} 45. Nd6 {[%clk 0:00:23]}  Ba6 {[%clk 0:00:41]} 46. Ka4 {[%clk 0:00:22]}  Ke7 {[%clk 0:00:40]} 47. Ne4 {[%clk 0:00:20]}  f5 {[%clk 0:00:36]} 48. Nc5 {[%clk 0:00:18]}  Bc4 {[%clk 0:00:36]} 49. Nb7 {[%clk 0:00:17]}  Kd7 {[%clk 0:00:35]} 50. Nc5+ {[%clk 0:00:16]}  Kc7 {[%clk 0:00:35]} 51. h3 {[%clk 0:00:12]}  Kb6 {[%clk 0:00:27]} 52. Nd7+ {[%clk 0:00:12]}  Ka6 {[%clk 0:00:27]} 53. Nc5+ {[%clk 0:00:12]}  Kb6 {[%clk 0:00:25]} 54. Nd7+ {[%clk 0:00:11]}  Kc7 {[%clk 0:00:26]} 55. Nc5 {[%clk 0:00:11]}  Kd8 {[%clk 0:00:26]} 56. Nb7+ {[%clk 0:00:10]}  Ke7 {[%clk 0:00:26]} 57. Nc5 {[%clk 0:00:10]}  Bf1 {[%clk 0:00:27]} 58. h4 {[%clk 0:00:09]}  g6 {[%clk 0:00:27]} 59. Nb7 {[%clk 0:00:07]}  Nd4 {[%clk 0:00:26]} 60. Nxa5 {[%clk 0:00:07]}  Ne2 {[%clk 0:00:27]} 61. Nc6+ {[%clk 0:00:07]}  Kd7 {[%clk 0:00:26]} 62. Nb8+ {[%clk 0:00:06]}  Ke8 {[%clk 0:00:27]} 63. Kb4 {[%clk 0:00:05]}  Nxg3 {[%clk 0:00:27]} 64. Kc5 {[%clk 0:00:05]}  Nh5 {[%clk 0:00:25]} 65. Kd6 {[%clk 0:00:05]}  Nxf4 {[%clk 0:00:26]} 66. Nd7 {[%clk 0:00:05]}  Bc4 {[%clk 0:00:25]} 67. Nb6 {[%clk 0:00:04]}  Bb3 {[%clk 0:00:25]} 68. Na8 {[%clk 0:00:03]}  Ng2 {[%clk 0:00:25]} 69. Nc7+ {[%clk 0:00:04]}  Kf7 {[%clk 0:00:25]} 70. Nb5 {[%clk 0:00:04]}  Nxh4 {[%clk 0:00:24]} 71. Nd4 {[%clk 0:00:03]}  Bd5 {[%clk 0:00:25]} 72. Ne2 {[%clk 0:00:02]}  g5 {[%clk 0:00:25]} 73. Nc3 {[%clk 0:00:02]}  Bf3 {[%clk 0:00:24]} 74. Kc5 {[%clk 0:00:01]}  g4 {[%clk 0:00:24]} 75. Kd4 {[%clk 0:00:01]}  f4 {[%clk 0:00:24]} 0-1


[Site "https://www.chess.com"]

[Event "Titled Tuesday Blitz December 13 Late 2022"]
[White "Kamsky, Gata"]
[Black "Estrada Nieto, Julian"]
[WhiteFideId "2000024"]
[BlackFideId "5101018"]
[WhiteElo "2666"]
[BlackElo "2195"]
[Result "1-0"]
[Round "07"]
[TimeControl "180+1"]
[Date "2022.12.14"]
[WhiteClock "0:00:59"]
[BlackClock "0:00:05"]

1. e4 {[%clk 0:03:00]}  e5 {[%clk 0:02:59]} 2. Nf3 {[%clk 0:03:00]}  Nc6 {[%clk 0:02:59]} 3. Bb5 {[%clk 0:03:00]}  a6 {[%clk 0:02:59]} 4. Ba4 {[%clk 0:03:00]}  Nf6 {[%clk 0:03:00]} 5. O-O {[%clk 0:03:00]}  Be7 {[%clk 0:03:00]} 6. Re1 {[%clk 0:03:00]}  b5 {[%clk 0:03:00]} 7. Bb3 {[%clk 0:03:00]}  d6 {[%clk 0:03:01]} 8. c3 {[%clk 0:03:00]}  O-O {[%clk 0:03:01]} 9. d4 {[%clk 0:03:01]}  Bg4 {[%clk 0:03:00]} 10. d5 {[%clk 0:03:00]}  Na5 {[%clk 0:02:59]} 11. Bc2 {[%clk 0:03:00]}  c6 {[%clk 0:02:58]} 12. h3 {[%clk 0:03:00]}  Bc8 {[%clk 0:02:58]} 13. dxc6 {[%clk 0:03:00]}  Qc7 {[%clk 0:02:58]} 14. Bg5 {[%clk 0:02:59]}  Nc4 {[%clk 0:02:45]} 15. b3 {[%clk 0:02:55]}  Nb6 {[%clk 0:02:45]} 16. Nbd2 {[%clk 0:02:42]}  Qxc6 {[%clk 0:02:45]} 17. Rc1 {[%clk 0:02:37]}  Qxc3 {[%clk 0:02:32]} 18. Bb1 {[%clk 0:02:19]}  Qa5 {[%clk 0:02:26]} 19. Nf1 {[%clk 0:02:15]}  Be6 {[%clk 0:02:20]} 20. Bd2 {[%clk 0:02:14]}  b4 {[%clk 0:02:04]} 21. Ng5 {[%clk 0:02:11]}  Rac8 {[%clk 0:01:56]} 22. Nxe6 {[%clk 0:02:10]}  fxe6 {[%clk 0:01:57]} 23. Qe2 {[%clk 0:02:07]}  Nbd7 {[%clk 0:01:41]} 24. Ne3 {[%clk 0:02:00]}  Nc5 {[%clk 0:01:35]} 25. Rc4 {[%clk 0:01:58]}  Rb8 {[%clk 0:01:11]} 26. Nc2 {[%clk 0:01:48]}  Qb5 {[%clk 0:00:43]} 27. Rxb4 {[%clk 0:01:36]}  Qxe2 {[%clk 0:00:42]} 28. Rxe2 {[%clk 0:01:36]}  Nd3 {[%clk 0:00:32]} 29. Rxb8 {[%clk 0:01:26]}  Rxb8 {[%clk 0:00:31]} 30. Ne3 {[%clk 0:01:21]}  Nf4 {[%clk 0:00:21]} 31. Re1 {[%clk 0:01:21]}  d5 {[%clk 0:00:17]} 32. exd5 {[%clk 0:01:19]}  exd5 {[%clk 0:00:17]} 33. g3 {[%clk 0:01:19]}  Nxh3+ {[%clk 0:00:16]} 34. Kg2 {[%clk 0:01:19]}  Ng5 {[%clk 0:00:16]} 35. Nf5 {[%clk 0:01:19]}  Bb4 {[%clk 0:00:12]} 36. Bxb4 {[%clk 0:01:14]}  Rxb4 {[%clk 0:00:12]} 37. Rxe5 {[%clk 0:01:14]}  Kf8 {[%clk 0:00:10]} 38. Ne3 {[%clk 0:01:09]}  Nf7 {[%clk 0:00:09]} 39. Re6 {[%clk 0:01:08]}  a5 {[%clk 0:00:10]} 40. Ra6 {[%clk 0:01:07]}  d4 {[%clk 0:00:09]} 41. Ra8+ {[%clk 0:01:02]}  Ke7 {[%clk 0:00:08]} 42. Nf5+ {[%clk 0:01:02]}  Ke6 {[%clk 0:00:08]} 43. Nxg7+ {[%clk 0:01:02]}  Kd5 {[%clk 0:00:08]} 44. Rxa5+ {[%clk 0:01:01]}  Kc6 {[%clk 0:00:07]} 45. Ra6+ {[%clk 0:00:59]}  Kb5 {[%clk 0:00:06]} 46. Rxf6 {[%clk 0:00:59]}  Ne5 {[%clk 0:00:06]} 47. Rf5 {[%clk 0:00:59]}  d3 {[%clk 0:00:04]} 48. Rxe5+ {[%clk 0:00:59]}  Kb6 {[%clk 0:00:05]} 49. Bxd3 {[%clk 0:00:59]}  Rd4 {[%clk 0:00:05]} 50. Bxh7 {[%clk 0:00:59]} 1-0


[Site "https://www.chess.com"]

[Event "Titled Tuesday Blitz December 13 Late 2022"]
[White "Karas, Marek"]
[Black "Walentukiewicz, Michal"]
[WhiteFideId "14928558"]
[BlackFideId "1126903"]
[WhiteElo "2247"]
[BlackElo "2028"]
[Result "1-0"]
[Round "07"]
[TimeControl "180+1"]
[Date "2022.12.14"]
[WhiteClock "0:01:14"]
[BlackClock "0:01:32"]

1. h4 {[%clk 0:02:58]}  e5 {[%clk 0:02:59]} 2. c4 {[%clk 0:02:57]}  Nc6 {[%clk 0:02:58]} 3. Nc3 {[%clk 0:02:57]}  Bc5 {[%clk 0:02:58]} 4. e3 {[%clk 0:02:56]}  Nf6 {[%clk 0:02:55]} 5. g4 {[%clk 0:02:54]}  h6 {[%clk 0:02:53]} 6. Bg2 {[%clk 0:02:51]}  d6 {[%clk 0:02:53]} 7. g5 {[%clk 0:02:51]}  hxg5 {[%clk 0:02:52]} 8. hxg5 {[%clk 0:02:52]}  Rxh1 {[%clk 0:02:52]} 9. Bxh1 {[%clk 0:02:53]}  Ng8 {[%clk 0:02:47]} 10. Qh5 {[%clk 0:02:49]}  Be6 {[%clk 0:02:47]} 11. Nd5 {[%clk 0:02:41]}  Qd7 {[%clk 0:02:46]} 12. a3 {[%clk 0:02:36]}  a6 {[%clk 0:02:45]} 13. b4 {[%clk 0:02:35]}  Ba7 {[%clk 0:02:45]} 14. Bb2 {[%clk 0:02:29]}  O-O-O {[%clk 0:02:44]} 15. Bg2 {[%clk 0:02:11]}  Nce7 {[%clk 0:02:36]} 16. Qe2 {[%clk 0:02:04]}  Ng6 {[%clk 0:02:35]} 17. d3 {[%clk 0:01:58]}  N8e7 {[%clk 0:02:33]} 18. Rc1 {[%clk 0:01:53]}  c6 {[%clk 0:02:30]} 19. b5 {[%clk 0:01:45]}  Kb8 {[%clk 0:02:16]} 20. bxc6 {[%clk 0:01:41]}  bxc6 {[%clk 0:02:16]} 21. Nxe7 {[%clk 0:01:40]}  Qxe7 {[%clk 0:02:13]} 22. Bc3 {[%clk 0:01:38]}  d5 {[%clk 0:02:08]} 23. Rb1+ {[%clk 0:01:35]}  Ka8 {[%clk 0:02:07]} 24. cxd5 {[%clk 0:01:30]}  cxd5 {[%clk 0:02:07]} 25. Nf3 {[%clk 0:01:27]}  Qxa3 {[%clk 0:01:59]} 26. Bb4 {[%clk 0:01:26]}  Qa4 {[%clk 0:01:53]} 27. Qb2 {[%clk 0:01:23]}  Rb8 {[%clk 0:01:45]} 28. Nxe5 {[%clk 0:01:18]}  Nxe5 {[%clk 0:01:35]} 29. Qxe5 {[%clk 0:01:17]}  Rxb4 {[%clk 0:01:34]} 30. Bxd5+ {[%clk 0:01:16]}  Bxd5 {[%clk 0:01:34]} 31. Qxd5+ {[%clk 0:01:16]}  Kb8 {[%clk 0:01:32]} 32. Qd6+ {[%clk 0:01:14]} 1-0


[Site "https://www.chess.com"]